[Event "*** Titled Tuesday Blitz"]
[Site "Chess.com"]
[Date "2020.05.12"]
[Round "2"]
[White "przemekpiotrowski"]
[Black "CMS13"]
[Result "1-0"]
[WhiteElo "2426"]
[BlackElo "2171"]
[TimeControl "180+1"]
[EndTime "10:18:25 PDT"]
[Termination "przemekpiotrowski won on time"]

1. d4 {[%clk 0:03:00.9]} 1... d5 {[%clk 0:02:59.9]} 2. Nf3 {[%clk 0:02:59.7]}
2... Nf6 {[%clk 0:02:59.6]} 3. g3 {[%clk 0:02:59.6]} 3... Bg4 {[%clk 0:02:56.3]}
4. Bg2 {[%clk 0:02:59]} 4... Nbd7 {[%clk 0:02:56.3]} 5. O-O {[%clk 0:02:58.7]}
5... e6 {[%clk 0:02:56]} 6. c4 {[%clk 0:02:59.3]} 6... c6 {[%clk 0:02:56.2]} 7.
Nc3 {[%clk 0:02:59.8]} 7... Bd6 {[%clk 0:02:55.9]} 8. b3 {[%clk 0:02:57.6]} 8...
O-O {[%clk 0:02:55.9]} 9. Bb2 {[%clk 0:02:58.1]} 9... Re8 {[%clk 0:02:54.2]} 10.
h3 {[%clk 0:02:58]} 10... Bh5 {[%clk 0:02:53.5]} 11. Re1 {[%clk 0:02:54.8]}
11... a5 {[%clk 0:02:41.6]} 12. Nd2 {[%clk 0:02:47.6]} 12... Bc7 {[%clk
0:02:29.9]} 13. Qc1 {[%clk 0:02:41]} 13... e5 {[%clk 0:02:15.9]} 14. dxe5 {[%clk
0:02:40.2]} 14... Nxe5 {[%clk 0:02:16]} 15. cxd5 {[%clk 0:02:40]} 15... Nxd5
{[%clk 0:02:14.2]} 16. Nxd5 {[%clk 0:02:36.7]} 16... cxd5 {[%clk 0:02:14.5]} 17.
Nf1 {[%clk 0:02:20.3]} 17... Rc8 {[%clk 0:02:10]} 18. Qd2 {[%clk 0:02:12.8]}
18... Nc6 {[%clk 0:01:33.5]} 19. g4 {[%clk 0:02:01.5]} 19... Bg6 {[%clk
0:01:32.8]} 20. Qxd5 {[%clk 0:02:01.7]} 20... Qxd5 {[%clk 0:01:30.5]} 21. Bxd5
{[%clk 0:02:02.6]} 21... Nb4 {[%clk 0:01:30.2]} 22. Bxb7 {[%clk 0:01:54.5]}
22... Rb8 {[%clk 0:01:28.6]} 23. Bf3 {[%clk 0:01:54.2]} 23... Nc2 {[%clk
0:01:27.6]} 24. Rec1 {[%clk 0:01:50.3]} 24... Bb6 {[%clk 0:00:54.7]} 25. Rab1
{[%clk 0:01:26.9]} 25... Nb4 {[%clk 0:00:49.6]} 26. a3 {[%clk 0:01:27.1]} 26...
Bxb1 {[%clk 0:00:45.4]} 27. Rxb1 {[%clk 0:01:26.2]} 27... Nc2 {[%clk 0:00:38.8]}
28. e3 {[%clk 0:01:23.4]} 28... Rbc8 {[%clk 0:00:16.6]} 29. Rc1 {[%clk
0:01:12.7]} 29... f6 {[%clk 0:00:15.2]} 30. Bd1 {[%clk 0:01:09.3]} 30... Nxe3
{[%clk 0:00:14.4]} 31. Nxe3 {[%clk 0:01:05.5]} 31... Bxe3 {[%clk 0:00:12.4]} 32.
fxe3 {[%clk 0:00:58]} 32... Rxc1 {[%clk 0:00:12]} 33. Bxc1 {[%clk 0:00:58.9]}
33... Kf7 {[%clk 0:00:12.1]} 34. Kf2 {[%clk 0:00:58.5]} 34... Rc8 {[%clk
0:00:11.5]} 35. Bd2 {[%clk 0:00:57]} 35... Rd8 {[%clk 0:00:11.3]} 36. Ke2 {[%clk
0:00:56.9]} 36... Ra8 {[%clk 0:00:11]} 37. Bc2 {[%clk 0:00:56.2]} 37... Ke6
{[%clk 0:00:11.2]} 38. Bxh7 {[%clk 0:00:55.8]} 38... Rh8 {[%clk 0:00:10.3]} 39.
Bf5+ {[%clk 0:00:56]} 39... Kd6 {[%clk 0:00:09.8]} 40. Bxa5 {[%clk 0:00:56.2]}
40... Rxh3 {[%clk 0:00:09.3]} 41. Kd3 {[%clk 0:00:56.5]} 41... Ke5 {[%clk
0:00:08.8]} 42. Bc7+ {[%clk 0:00:56.3]} 42... Kd5 {[%clk 0:00:09.2]} 43. g5
{[%clk 0:00:51.5]} 43... Rh5 {[%clk 0:00:06.6]} 44. Be4+ {[%clk 0:00:50.6]}
44... Ke6 {[%clk 0:00:06.4]} 45. gxf6 {[%clk 0:00:49.9]} 45... gxf6 {[%clk
0:00:06.9]} 46. Bf4 {[%clk 0:00:49.5]} 46... Rh4 {[%clk 0:00:06.5]} 47. Kd4
{[%clk 0:00:47.9]} 47... f5 {[%clk 0:00:06.6]} 48. Bd5+ {[%clk 0:00:48.4]} 48...
Kf6 {[%clk 0:00:06.4]} 49. b4 {[%clk 0:00:47.9]} 49... Rh1 {[%clk 0:00:06.5]}
50. b5 {[%clk 0:00:47.1]} 50... Rb1 {[%clk 0:00:06.1]} 51. Bc4 {[%clk 0:00:45]}
51... Ra1 {[%clk 0:00:04.7]} 52. Bd6 {[%clk 0:00:45.2]} 52... Rd1+ {[%clk
0:00:04.4]} 53. Kc5 {[%clk 0:00:45.4]} 53... Kg7 {[%clk 0:00:01.8]} 54. Be5+
{[%clk 0:00:44.7]} 1-0

[Event "*** Titled Tuesday Blitz"]
[Site "Chess.com"]
[Date "2020.05.12"]
[Round "2"]
[White "RubensCezila"]
[Black "chessdjw"]
[Result "0-1"]
[WhiteElo "2475"]
[BlackElo "2708"]
[TimeControl "180+1"]
[EndTime "10:18:26 PDT"]
[Termination "chessdjw won on time"]

1. c4 {[%clk 0:03:00.9]} 1... g6 {[%clk 0:02:57.6]} 2. Nc3 {[%clk 0:03:01.2]}
2... c5 {[%clk 0:02:56.5]} 3. d4 {[%clk 0:02:57.7]} 3... cxd4 {[%clk 0:02:54.4]}
4. Qxd4 {[%clk 0:02:58.6]} 4... Nf6 {[%clk 0:02:54.9]} 5. Bg5 {[%clk 0:02:57.7]}
5... Nc6 {[%clk 0:02:54.8]} 6. Qd2 {[%clk 0:02:56.5]} 6... Bg7 {[%clk
0:02:54.8]} 7. e4 {[%clk 0:02:39.9]} 7... d6 {[%clk 0:02:54]} 8. f3 {[%clk
0:02:38.6]} 8... Be6 {[%clk 0:02:47.3]} 9. Rc1 {[%clk 0:02:36]} 9... Rc8 {[%clk
0:02:46.3]} 10. Nd5 {[%clk 0:02:28.2]} 10... Nd7 {[%clk 0:02:33.1]} 11. Ne2
{[%clk 0:02:19.3]} 11... O-O {[%clk 0:02:30]} 12. b4 {[%clk 0:02:11.3]} 12... f6
{[%clk 0:02:14.4]} 13. Be3 {[%clk 0:02:08.9]} 13... Nce5 {[%clk 0:01:58.1]} 14.
Nd4 {[%clk 0:01:57.8]} 14... Bf7 {[%clk 0:01:56.5]} 15. Be2 {[%clk 0:01:53.4]}
15... e6 {[%clk 0:01:41.8]} 16. Nf4 {[%clk 0:01:36.7]} 16... Qe7 {[%clk
0:01:42.1]} 17. Nb5 {[%clk 0:01:33.5]} 17... g5 {[%clk 0:01:35.9]} 18. Nh3
{[%clk 0:01:32]} 18... d5 {[%clk 0:01:14.6]} 19. c5 {[%clk 0:01:14.6]} 19...
dxe4 {[%clk 0:01:06.6]} 20. fxe4 {[%clk 0:01:14.5]} 20... a6 {[%clk 0:00:59.3]}
21. Nd6 {[%clk 0:01:14.4]} 21... Rc7 {[%clk 0:00:57.3]} 22. O-O {[%clk
0:01:10.8]} 22... Bg6 {[%clk 0:00:55.5]} 23. a4 {[%clk 0:00:54.6]} 23... h6
{[%clk 0:00:50.6]} 24. b5 {[%clk 0:00:52.4]} 24... axb5 {[%clk 0:00:48.7]} 25.
axb5 {[%clk 0:00:53.3]} 25... b6 {[%clk 0:00:38.3]} 26. cxb6 {[%clk 0:00:38.2]}
26... Rxc1 {[%clk 0:00:37.9]} 27. Rxc1 {[%clk 0:00:39.1]} 27... f5 {[%clk
0:00:32.8]} 28. b7 {[%clk 0:00:35.8]} 28... f4 {[%clk 0:00:30]} 29. Ba7 {[%clk
0:00:26.9]} 29... Kh7 {[%clk 0:00:27.8]} 30. Rc8 {[%clk 0:00:21.4]} 30... f3
{[%clk 0:00:27.6]} 31. gxf3 {[%clk 0:00:17.4]} 31... Rxf3 {[%clk 0:00:25.9]} 32.
Bf1 {[%clk 0:00:11]} 32... Rxh3 {[%clk 0:00:21.4]} 33. Bg2 {[%clk 0:00:02.9]}
33... Ra3 {[%clk 0:00:19.1]} 34. b8=Q {[%clk 0:00:01.8]} 34... Nxb8 {[%clk
0:00:18.8]} 35. Bxb8 {[%clk 0:00:02.3]} 35... Ra1+ {[%clk 0:00:19.3]} 36. Kf2
{[%clk 0:00:01.9]} 36... Qf6+ {[%clk 0:00:19.5]} 37. Kg3 {[%clk 0:00:01.8]}
37... Ra3+ {[%clk 0:00:18]} 38. Rc3 {[%clk 0:00:01.6]} 38... Rxc3+ {[%clk
0:00:18.2]} 39. Qxc3 {[%clk 0:00:02.5]} 39... Qf4+ {[%clk 0:00:18.5]} 0-1

[Event "*** Titled Tuesday Blitz"]
[Site "Chess.com"]
[Date "2020.05.12"]
[Round "2"]
[White "diablanni"]
[Black "M1711"]
[Result "1-0"]
[WhiteElo "2299"]
[BlackElo "2503"]
[TimeControl "180+1"]
[EndTime "10:18:27 PDT"]
[Termination "diablanni won by checkmate"]

1. e4 {[%clk 0:03:00.9]} 1... c5 {[%clk 0:02:59.7]} 2. Nf3 {[%clk 0:02:59.4]}
2... d6 {[%clk 0:02:59.9]} 3. Bb5+ {[%clk 0:02:56.8]} 3... Nd7 {[%clk
0:02:59.3]} 4. d4 {[%clk 0:02:55.4]} 4... cxd4 {[%clk 0:02:58.4]} 5. Qxd4 {[%clk
0:02:50.5]} 5... Nf6 {[%clk 0:02:53.2]} 6. Nc3 {[%clk 0:02:38]} 6... a6 {[%clk
0:02:44.7]} 7. Bxd7+ {[%clk 0:02:33.2]} 7... Bxd7 {[%clk 0:02:44.1]} 8. Bg5
{[%clk 0:02:28]} 8... e5 {[%clk 0:02:39.1]} 9. Qd3 {[%clk 0:01:50.6]} 9... Bc6
{[%clk 0:02:29.6]} 10. O-O {[%clk 0:01:24.8]} 10... Be7 {[%clk 0:02:25.5]} 11.
Nd2 {[%clk 0:01:17.4]} 11... O-O {[%clk 0:02:15.2]} 12. Nc4 {[%clk 0:01:14.4]}
12... b5 {[%clk 0:02:13.7]} 13. Ne3 {[%clk 0:01:09.1]} 13... b4 {[%clk
0:02:12.8]} 14. Bxf6 {[%clk 0:01:03.8]} 14... bxc3 {[%clk 0:01:56.9]} 15. Bxe7
{[%clk 0:01:02.6]} 15... Qxe7 {[%clk 0:01:57.8]} 16. bxc3 {[%clk 0:00:58.8]}
16... Rfc8 {[%clk 0:01:58.3]} 17. c4 {[%clk 0:00:57.4]} 17... a5 {[%clk
0:01:49.8]} 18. Nf5 {[%clk 0:00:54.1]} 18... Qg5 {[%clk 0:00:50.5]} 19. Nxd6
{[%clk 0:00:50.9]} 19... Rd8 {[%clk 0:00:46.4]} 20. c5 {[%clk 0:00:50.1]} 20...
Rab8 {[%clk 0:00:41.9]} 21. Rab1 {[%clk 0:00:48.4]} 21... h5 {[%clk 0:00:31.3]}
22. f3 {[%clk 0:00:42.1]} 22... Rb4 {[%clk 0:00:19.8]} 23. Rxb4 {[%clk
0:00:36.4]} 23... axb4 {[%clk 0:00:20.7]} 24. Qc4 {[%clk 0:00:25]} 24... Qe3+
{[%clk 0:00:14.1]} 25. Kh1 {[%clk 0:00:21]} 25... Rd7 {[%clk 0:00:15]} 26. Qxb4
{[%clk 0:00:16.3]} 26... Kh8 {[%clk 0:00:15.4]} 27. a4 {[%clk 0:00:15.6]} 27...
Kh7 {[%clk 0:00:13.7]} 28. a5 {[%clk 0:00:14.4]} 28... Qe2 {[%clk 0:00:13.5]}
29. Qb1 {[%clk 0:00:09.8]} 29... Ra7 {[%clk 0:00:11.4]} 30. Re1 {[%clk
0:00:07.3]} 30... Qd2 {[%clk 0:00:10.5]} 31. Rd1 {[%clk 0:00:06.5]} 31... Qxa5
{[%clk 0:00:10.7]} 32. Qb6 {[%clk 0:00:05.7]} 32... Qd2 {[%clk 0:00:06.5]} 33.
Rg1 {[%clk 0:00:05.1]} 33... Ra2 {[%clk 0:00:01.6]} 34. Qxc6 {[%clk 0:00:04.2]}
34... Rxc2 {[%clk 0:00:02.3]} 35. Nxf7 {[%clk 0:00:02]} 35... Rc1 {[%clk
0:00:02.2]} 36. Ng5+ {[%clk 0:00:01.8]} 36... Kg8 {[%clk 0:00:02.6]} 37. Qe8#
{[%clk 0:00:02.3]} 1-0

[Event "*** Titled Tuesday Blitz"]
[Site "Chess.com"]
[Date "2020.05.12"]
[Round "2"]
[White "cukus"]
[Black "CuattroPrincesses"]
[Result "1-0"]
[WhiteElo "2506"]
[BlackElo "2274"]
[TimeControl "180+1"]
[EndTime "10:18:27 PDT"]
[Termination "cukus won on time"]

1. e4 {[%clk 0:03:00.9]} 1... c5 {[%clk 0:02:53.9]} 2. Nf3 {[%clk 0:03:00.5]}
2... d6 {[%clk 0:02:53]} 3. d4 {[%clk 0:03:00.6]} 3... cxd4 {[%clk 0:02:52.2]}
4. Nxd4 {[%clk 0:03:01.5]} 4... Nf6 {[%clk 0:02:52.6]} 5. Nc3 {[%clk 0:03:00.3]}
5... a6 {[%clk 0:02:53.1]} 6. Be3 {[%clk 0:02:57.9]} 6... e5 {[%clk 0:02:52.7]}
7. Nb3 {[%clk 0:02:56.6]} 7... Be6 {[%clk 0:02:52.7]} 8. f3 {[%clk 0:02:56.8]}
8... h5 {[%clk 0:02:52.1]} 9. Qd2 {[%clk 0:02:56.3]} 9... Nbd7 {[%clk
0:02:52.5]} 10. Nd5 {[%clk 0:02:56.3]} 10... Bxd5 {[%clk 0:02:46.1]} 11. exd5
{[%clk 0:02:57.2]} 11... g6 {[%clk 0:02:44.9]} 12. Be2 {[%clk 0:02:57.2]} 12...
Bg7 {[%clk 0:02:44.4]} 13. O-O-O {[%clk 0:02:57]} 13... O-O {[%clk 0:02:42]} 14.
g4 {[%clk 0:02:56.3]} 14... Nb6 {[%clk 0:02:29]} 15. Bg5 {[%clk 0:02:50.4]}
15... hxg4 {[%clk 0:02:24.2]} 16. fxg4 {[%clk 0:02:35.3]} 16... Qc7 {[%clk
0:02:20.2]} 17. Bh6 {[%clk 0:02:24]} 17... Ne4 {[%clk 0:02:04.4]} 18. Qe3 {[%clk
0:02:22.8]} 18... Rac8 {[%clk 0:01:57]} 19. Bd3 {[%clk 0:01:39.4]} 19... Bxh6
{[%clk 0:01:50]} 20. Qxh6 {[%clk 0:01:38.4]} 20... Nf2 {[%clk 0:01:49.6]} 21. c3
{[%clk 0:01:25]} 21... Nxh1 {[%clk 0:01:32.8]} 22. Rxh1 {[%clk 0:01:16.8]} 22...
Nxd5 {[%clk 0:01:19.4]} 23. h4 {[%clk 0:01:11.3]} 23... Nxc3 {[%clk 0:00:50.3]}
24. h5 {[%clk 0:01:09.6]} 24... e4 {[%clk 0:00:36.7]} 25. hxg6 {[%clk
0:01:06.7]} 25... fxg6 {[%clk 0:00:34.7]} 26. Bc4+ {[%clk 0:01:05]} 26... d5
{[%clk 0:00:30.2]} 27. Qh8+ {[%clk 0:00:43.6]} 27... Kf7 {[%clk 0:00:29.6]} 28.
Rf1+ {[%clk 0:00:43.1]} 28... Ke6 {[%clk 0:00:20.5]} 29. Nd4+ {[%clk 0:00:39.3]}
29... Kd6 {[%clk 0:00:17.8]} 30. Rxf8 {[%clk 0:00:37.4]} 30... Rxf8 {[%clk
0:00:17.2]} 31. Qxf8+ {[%clk 0:00:36]} 31... Ke5 {[%clk 0:00:15.6]} 32. bxc3
{[%clk 0:00:33.9]} 32... Qxc4 {[%clk 0:00:15]} 33. Qe7+ {[%clk 0:00:27.3]} 33...
Kf4 {[%clk 0:00:13.8]} 34. Qf6+ {[%clk 0:00:26.1]} 34... Ke3 {[%clk 0:00:08.6]}
35. Qg5+ {[%clk 0:00:24.8]} 35... Kf2 {[%clk 0:00:04.7]} 36. Qf4+ {[%clk
0:00:22.8]} 36... Kg2 {[%clk 0:00:03.1]} 37. Qd2+ {[%clk 0:00:20.2]} 37... Kg3
{[%clk 0:00:02.1]} 38. Qe3+ {[%clk 0:00:20.4]} 38... Kxg4 {[%clk 0:00:01.8]} 39.
Qg1+ {[%clk 0:00:20.6]} 39... Kh5 {[%clk 0:00:01.4]} 40. Qh2+ {[%clk 0:00:20.6]}
40... Kg5 {[%clk 0:00:01.5]} 41. Qg3+ {[%clk 0:00:20.7]} 41... Kf6 {[%clk
0:00:02.1]} 42. Qd6+ {[%clk 0:00:20.1]} 1-0

[Event "*** Titled Tuesday Blitz"]
[Site "Chess.com"]
[Date "2020.05.12"]
[Round "2"]
[White "MarcoRiehle"]
[Black "konradrutkowski"]
[Result "1-0"]
[WhiteElo "2616"]
[BlackElo "2258"]
[TimeControl "180+1"]
[EndTime "10:18:28 PDT"]
[Termination "MarcoRiehle won by resignation"]

1. e4 {[%clk 0:03:00.9]} 1... e5 {[%clk 0:02:58.6]} 2. Nf3 {[%clk 0:02:59.9]}
2... Nc6 {[%clk 0:02:58.7]} 3. Bc4 {[%clk 0:03:00]} 3... Nf6 {[%clk 0:02:58.2]}
4. d4 {[%clk 0:02:57.1]} 4... exd4 {[%clk 0:02:56.6]} 5. e5 {[%clk 0:02:57]}
5... d5 {[%clk 0:02:43.7]} 6. Bb5 {[%clk 0:02:56.2]} 6... Ne4 {[%clk 0:02:44.1]}
7. Nxd4 {[%clk 0:02:55.2]} 7... Bd7 {[%clk 0:02:44.5]} 8. Bxc6 {[%clk
0:02:54.5]} 8... bxc6 {[%clk 0:02:45.4]} 9. O-O {[%clk 0:02:54.7]} 9... Bc5
{[%clk 0:02:45.9]} 10. f3 {[%clk 0:02:53.9]} 10... Ng5 {[%clk 0:02:45.9]} 11. f4
{[%clk 0:02:54.3]} 11... Ne4 {[%clk 0:02:46.5]} 12. Be3 {[%clk 0:02:54.7]} 12...
Bb6 {[%clk 0:02:45.5]} 13. Nd2 {[%clk 0:02:54.7]} 13... Nxd2 {[%clk 0:02:45.5]}
14. Qxd2 {[%clk 0:02:55.6]} 14... c5 {[%clk 0:02:44.5]} 15. Nb3 {[%clk
0:02:44.3]} 15... c4 {[%clk 0:02:35.7]} 16. Nc5 {[%clk 0:02:40.4]} 16... Bc6
{[%clk 0:02:29.6]} 17. c3 {[%clk 0:02:29.2]} 17... Qe7 {[%clk 0:02:24.6]} 18.
Qd4 {[%clk 0:02:27.3]} 18... O-O {[%clk 0:02:22]} 19. b4 {[%clk 0:02:19.4]}
19... cxb3 {[%clk 0:02:20.6]} 20. axb3 {[%clk 0:02:20.3]} 20... a5 {[%clk
0:02:20.7]} 21. b4 {[%clk 0:02:17.5]} 21... axb4 {[%clk 0:02:19.3]} 22. cxb4
{[%clk 0:02:18.4]} 22... Bb5 {[%clk 0:02:16.3]} 23. Rf3 {[%clk 0:02:07.1]} 23...
Rxa1+ {[%clk 0:02:12.5]} 24. Qxa1 {[%clk 0:02:08]} 24... d4 {[%clk 0:02:03.5]}
25. Qxd4 {[%clk 0:01:49.4]} 25... Rd8 {[%clk 0:02:00.2]} 26. Qa1 {[%clk
0:01:49.6]} 26... Bxc5 {[%clk 0:01:41]} 27. Bxc5 {[%clk 0:01:46.9]} 27... Qe6
{[%clk 0:01:39.9]} 28. Rf2 {[%clk 0:01:23.8]} 28... h5 {[%clk 0:01:31.9]} 29. h3
{[%clk 0:01:22]} 29... Qb3 {[%clk 0:01:31.1]} 30. Kh2 {[%clk 0:01:14.8]} 30...
h4 {[%clk 0:01:28.5]} 31. Rf3 {[%clk 0:01:14.8]} 31... Qc2 {[%clk 0:01:23.4]}
32. e6 {[%clk 0:01:05.2]} 32... fxe6 {[%clk 0:01:20.7]} 33. Qe5 {[%clk
0:01:04.2]} 33... Qc4 {[%clk 0:01:13.1]} 34. Qxc7 {[%clk 0:00:53.5]} 34... Re8
{[%clk 0:01:06.2]} 35. f5 {[%clk 0:00:35.9]} 35... exf5 {[%clk 0:01:03.8]} 36.
Rxf5 {[%clk 0:00:35.5]} 36... Qe6 {[%clk 0:00:47.6]} 37. Qf4 {[%clk 0:00:33.4]}
37... Bc6 {[%clk 0:00:41.6]} 38. Rg5 {[%clk 0:00:27.2]} 38... Qe4 {[%clk
0:00:24.9]} 39. Qc7 {[%clk 0:00:16.1]} 39... g6 {[%clk 0:00:21.4]} 40. Qd6
{[%clk 0:00:09.6]} 40... Kh7 {[%clk 0:00:17.8]} 41. Rg4 {[%clk 0:00:06.6]} 41...
Qd5 {[%clk 0:00:16.4]} 42. Qxg6+ {[%clk 0:00:05.8]} 1-0

[Event "*** Titled Tuesday Blitz"]
[Site "Chess.com"]
[Date "2020.05.12"]
[Round "2"]
[White "emperor87"]
[Black "kai_nov"]
[Result "1-0"]
[WhiteElo "2614"]
[BlackElo "2253"]
[TimeControl "180+1"]
[EndTime "10:18:28 PDT"]
[Termination "emperor87 won on time"]

1. e3 {[%clk 0:03:00.7]} 1... d5 {[%clk 0:02:58.6]} 2. Nf3 {[%clk 0:03:00.9]}
2... Nf6 {[%clk 0:02:54.9]} 3. b3 {[%clk 0:03:01.1]} 3... c5 {[%clk 0:02:52.7]}
4. Bb2 {[%clk 0:03:01.5]} 4... a6 {[%clk 0:02:53.1]} 5. c4 {[%clk 0:02:56]} 5...
e6 {[%clk 0:02:41.8]} 6. d4 {[%clk 0:02:55.5]} 6... cxd4 {[%clk 0:02:37.3]} 7.
Nxd4 {[%clk 0:02:53]} 7... Bb4+ {[%clk 0:02:29.4]} 8. Bc3 {[%clk 0:02:51.7]}
8... Bd6 {[%clk 0:02:16.1]} 9. Bd3 {[%clk 0:02:47.3]} 9... O-O {[%clk
0:01:59.3]} 10. O-O {[%clk 0:02:46]} 10... Nc6 {[%clk 0:01:56]} 11. Nxc6 {[%clk
0:02:42.8]} 11... bxc6 {[%clk 0:01:55.8]} 12. Nd2 {[%clk 0:02:42.2]} 12... e5
{[%clk 0:01:53.7]} 13. Bb2 {[%clk 0:02:40.5]} 13... Qe7 {[%clk 0:01:50.8]} 14.
cxd5 {[%clk 0:02:36.3]} 14... cxd5 {[%clk 0:01:50.5]} 15. Rc1 {[%clk 0:02:35.8]}
15... Bb7 {[%clk 0:01:50.1]} 16. Qe2 {[%clk 0:02:32]} 16... e4 {[%clk
0:01:47.4]} 17. Bb1 {[%clk 0:02:29.8]} 17... Rac8 {[%clk 0:01:31.4]} 18. Rfd1
{[%clk 0:02:17.5]} 18... Be5 {[%clk 0:01:19.2]} 19. Nf1 {[%clk 0:02:15.5]} 19...
h6 {[%clk 0:00:57.9]} 20. Ng3 {[%clk 0:02:13.8]} 20... g6 {[%clk 0:00:57.7]} 21.
a3 {[%clk 0:02:03.5]} 21... h5 {[%clk 0:00:56.6]} 22. b4 {[%clk 0:02:00.6]}
22... Ng4 {[%clk 0:00:48.5]} 23. Nf1 {[%clk 0:01:55.6]} 23... Qf6 {[%clk
0:00:36.4]} 24. Bxe5 {[%clk 0:01:53.1]} 24... Nxe5 {[%clk 0:00:35.2]} 25. Nd2
{[%clk 0:01:47.6]} 25... d4 {[%clk 0:00:20.4]} 26. exd4 {[%clk 0:01:45.1]} 26...
Nf3+ {[%clk 0:00:20.2]} 27. gxf3 {[%clk 0:01:39]} 27... exf3 {[%clk 0:00:20.3]}
28. Qf1 {[%clk 0:01:29.3]} 28... Rxc1 {[%clk 0:00:17.9]} 29. Rxc1 {[%clk
0:01:29.4]} 29... Qg5+ {[%clk 0:00:18]} 30. Kh1 {[%clk 0:01:29.6]} 30... Qxd2
{[%clk 0:00:18]} 31. Rd1 {[%clk 0:01:29.9]} 31... Qf4 {[%clk 0:00:16.2]} 32. d5
{[%clk 0:01:28.8]} 32... Rd8 {[%clk 0:00:13.9]} 33. Ba2 {[%clk 0:01:29]} 33...
Rd6 {[%clk 0:00:13.7]} 34. Qc4 {[%clk 0:01:26.4]} 34... Qg5 {[%clk 0:00:12.5]}
35. Rg1 {[%clk 0:01:26.4]} 35... Qf6 {[%clk 0:00:10.2]} 36. Qe4 {[%clk
0:01:24.3]} 36... Qd8 {[%clk 0:00:05.8]} 37. Qxf3 {[%clk 0:01:17.2]} 37... Bxd5
{[%clk 0:00:04.9]} 38. Bxd5 {[%clk 0:01:15.8]} 38... Rxd5 {[%clk 0:00:05.2]} 39.
Re1 {[%clk 0:01:15.6]} 39... Qd6 {[%clk 0:00:04.8]} 40. h3 {[%clk 0:01:12.6]}
40... Kg7 {[%clk 0:00:04.8]} 41. Kg2 {[%clk 0:01:11.4]} 41... Rf5 {[%clk
0:00:04.4]} 42. Qc3+ {[%clk 0:01:10.5]} 42... Kh7 {[%clk 0:00:04.7]} 43. Re3
{[%clk 0:01:09.9]} 43... Qd5+ {[%clk 0:00:04.6]} 44. Kf1 {[%clk 0:01:08.4]}
44... Qh1+ {[%clk 0:00:03.3]} 45. Ke2 {[%clk 0:01:07.9]} 45... Qg2 {[%clk
0:00:03.6]} 46. Rf3 {[%clk 0:01:05.5]} 46... Qg5 {[%clk 0:00:02.9]} 47. Rxf5
{[%clk 0:01:04.6]} 47... Qxf5 {[%clk 0:00:02.8]} 48. Qf3 {[%clk 0:01:00.2]}
48... Qc2+ {[%clk 0:00:02.8]} 49. Kf1 {[%clk 0:01:00.4]} 49... Qc1+ {[%clk
0:00:03.1]} 50. Kg2 {[%clk 0:01:00.4]} 50... Qc4 {[%clk 0:00:03.2]} 51. Qb7
{[%clk 0:00:54.6]} 51... Kg7 {[%clk 0:00:02.2]} 52. a4 {[%clk 0:00:53.9]} 1-0

[Event "*** Titled Tuesday Blitz"]
[Site "Chess.com"]
[Date "2020.05.12"]
[Round "2"]
[White "mshuaau0"]
[Black "Nikithebest"]
[Result "1-0"]
[WhiteElo "2178"]
[BlackElo "2402"]
[TimeControl "180+1"]
[EndTime "10:18:28 PDT"]
[Termination "mshuaau0 won on time"]

1. e4 {[%clk 0:03:00.9]} 1... c5 {[%clk 0:03:00.1]} 2. Nf3 {[%clk 0:03:00.7]}
2... d6 {[%clk 0:03:00.7]} 3. d4 {[%clk 0:03:00.9]} 3... cxd4 {[%clk 0:03:01.6]}
4. Nxd4 {[%clk 0:03:01.6]} 4... Nf6 {[%clk 0:03:02.2]} 5. Nc3 {[%clk 0:03:02.2]}
5... g6 {[%clk 0:03:02.7]} 6. Be3 {[%clk 0:03:01.7]} 6... a6 {[%clk 0:03:03.2]}
7. f3 {[%clk 0:03:00.4]} 7... b5 {[%clk 0:03:03.6]} 8. a3 {[%clk 0:02:59.6]}
8... Bb7 {[%clk 0:03:03.5]} 9. Qd2 {[%clk 0:02:59.5]} 9... Nbd7 {[%clk 0:03:04]}
10. O-O-O {[%clk 0:02:58.6]} 10... Rc8 {[%clk 0:03:04]} 11. Kb1 {[%clk
0:02:58.9]} 11... Qa5 {[%clk 0:02:57.1]} 12. Nb3 {[%clk 0:02:52.6]} 12... Qc7
{[%clk 0:02:56]} 13. g4 {[%clk 0:02:49.2]} 13... Nb6 {[%clk 0:02:51.4]} 14. g5
{[%clk 0:02:48.5]} 14... Nh5 {[%clk 0:02:39.7]} 15. Bxb6 {[%clk 0:02:34.3]}
15... Qxb6 {[%clk 0:02:39.1]} 16. Bh3 {[%clk 0:02:28.7]} 16... Rc4 {[%clk
0:02:20.4]} 17. Bg4 {[%clk 0:02:13.4]} 17... Bg7 {[%clk 0:02:18.7]} 18. Nd5
{[%clk 0:02:05.5]} 18... Bxd5 {[%clk 0:02:15.7]} 19. Qxd5 {[%clk 0:02:05.8]}
19... O-O {[%clk 0:01:49.6]} 20. Bxh5 {[%clk 0:02:05.3]} 20... gxh5 {[%clk
0:01:50.5]} 21. f4 {[%clk 0:01:40.7]} 21... Rfc8 {[%clk 0:01:48.5]} 22. Rd2
{[%clk 0:01:35.6]} 22... a5 {[%clk 0:01:35.4]} 23. f5 {[%clk 0:01:29]} 23... a4
{[%clk 0:01:35.9]} 24. Nc1 {[%clk 0:01:00.5]} 24... R4c5 {[%clk 0:01:31.7]} 25.
Qd3 {[%clk 0:00:57.7]} 25... Be5 {[%clk 0:01:31.2]} 26. g6 {[%clk 0:00:51.9]}
26... fxg6 {[%clk 0:01:30.4]} 27. fxg6 {[%clk 0:00:52]} 27... b4 {[%clk
0:01:14.9]} 28. gxh7+ {[%clk 0:00:51.5]} 28... Kh8 {[%clk 0:01:14.7]} 29. Rg1
{[%clk 0:00:17.1]} 29... Rc3 {[%clk 0:01:09.7]} 30. Rg8+ {[%clk 0:00:16.3]}
30... Kxh7 {[%clk 0:00:55.2]} 31. Rxc8 {[%clk 0:00:16.3]} 31... Rxc8 {[%clk
0:00:53.4]} 32. Qd5 {[%clk 0:00:14.2]} 32... bxa3 {[%clk 0:00:45.2]} 33. Qf7+
{[%clk 0:00:13.8]} 33... Bg7 {[%clk 0:00:45.2]} 34. Qf5+ {[%clk 0:00:08.4]}
34... Kh6 {[%clk 0:00:43.3]} 35. Nd3 {[%clk 0:00:01.8]} 1-0